bitfinex/quotes_SOLUSD_20240628
["timestamp","ask_amount","ask_price","bid_price","bid_amount"]
[1719540925765,16.4301,148.27,148.21,0.8536732]
[1719540926072,6.6615,148.33,148.21,23.92166323]
[1719540926378,20.0,148.32,148.26,16.8616]
[1719540926607,20.0,148.34,148.26,16.8616]
[1719540926783,20.0,148.34,148.29,6.7431]
[1719540926984,20.0,148.34,148.28,16.859]
[1719540927300,20.0,148.36,148.28,16.859]
[1719540927506,20.0,148.36,148.31,6.7422]
[1719540927684,20.0,148.37,148.31,6.7422]
[1719540928302,20.0,148.37,148.3,16.8568]
[1719540929712,6.7408,148.35,148.3,16.8568]
[1719540929892,20.0,148.37,148.3,16.8568]
[1719540930410,6.7404,148.36,148.3,16.8568]
[1719540930617,20.0,148.35,148.21,22.5721732]
[1719540930785,46.3,148.37,148.21,22.5721732]
[1719540930992,46.3,148.37,148.26,16.8612]
[1719540931201,6.7422,148.32,148.26,16.8612]
[1719540931412,26.7426,148.31,148.26,16.8612]
[1719540931725,20.0,148.31,148.26,23.606]
[1719540932219,26.7427,148.31,148.24,6.7454]
[1719540932517,20.0,148.31,148.23,16.8653]
[1719540932698,20.0,148.33,148.24,6.7457]
[1719540932903,6.7422,148.32,148.26,6.7448]
[1719540933206,20.0,148.31,148.25,16.8627]
[1719540933412,20.0,148.33,148.25,16.8627]
[1719540933783,6.7422,148.32,148.26,6.7448]
[1719540934012,20.0,148.31,148.26,6.7448]
[1719540934312,6.7449,148.26,148.21,0.8536732]
[1719540934516,20.0,148.25,148.21,0.8536732]
[1719540935100,20.0,148.27,148.21,0.8536732]
[1719540935493,6.7461,148.24,148.21,0.8536732]
[1719540935691,20.0,148.23,148.21,0.8536732]
[1719540936093,26.7463,148.23,148.21,0.8536732]
[1719540937490,6.7467,148.22,148.21,0.8536732]
[1719540937815,26.7467,148.22,148.21,0.8536732]
[1719540938231,20.0,148.22,148.21,0.8536732]
[1719540938400,6.7436,148.29,148.21,0.8536732]
[1719540938599,15.8162,148.3,148.22,16.8658]
[1719540938600,20.0,148.28,148.22,16.8658]
[1719540938828,20.0,148.28,148.24,6.7456]
[1719540939042,20.0,148.28,148.23,6.7462]
[1719540939902,20.0,148.28,148.24,6.7456]
[1719540940214,20.0,148.29,148.24,6.7456]
[1719540940616,20.0,148.29,148.26,6.7448]
[1719540940815,20.0,148.29,148.25,6.7452]
[1719540941233,20.0,148.29,148.24,6.7457]
[1719540942001,20.0,148.29,148.24,23.6095]
[1719540942803,20.0,148.29,148.25,6.7453]
[1719540944834,42.7347,148.34,148.26,16.8613]
[1719540944835,16.4347,148.34,148.26,16.8613]
[1719540945031,20.0,148.33,148.28,6.7439]
[1719540945211,20.0,148.33,148.29,6.7435]
[1719540945402,20.0,148.34,148.29,6.7435]
[1719540945807,26.7408,148.35,148.29,6.7431]
[1719540946049,20.0,148.35,148.28,16.8594]
[1719540946334,26.74,148.37,148.3,23.5994]
[1719540946629,26.74,148.37,148.3,16.8568]
[1719540947403,20.0,148.37,148.31,6.7422]
[1719540947900,20.0,148.37,148.3,16.8568]
[1719540947901,20.0,148.37,148.32,6.7421]
[1719540948505,20.0,148.37,148.27,16.8606]
[1719540948700,20.0,148.37,148.29,6.7435]
[1719540948701,6.7408,148.35,148.29,6.7435]
[1719540948917,20.0,148.34,148.29,6.7435]
[1719540949126,20.0,148.34,148.3,6.7429]
[1719540949633,20.0,148.35,148.3,6.7429]
[1719540949835,6.7412,148.35,148.29,23.6015]
[1719540950138,20.0,148.34,148.22,6.2675]
[1719540950310,6.7442,148.28,148.22,6.2675]
[1719540950504,26.7445,148.27,148.21,23.9159732]
[1719540950844,26.7448,148.27,148.21,7.6007732]
[1719540951133,6.7449,148.26,148.21,0.8536732]
[1719540951299,26.7445,148.27,148.21,7.6007732]
[1719540951497,20.0,148.27,148.21,0.8536732]
[1719540951747,15.8134,148.3,148.21,0.8536732]
[1719540951748,36.8596,148.29,148.21,0.8536732]
[1719540951933,6.7462,148.24,148.21,0.8536732]
[1719540952137,20.0,148.23,148.21,0.8536732]
[1719540952502,6.7467,148.22,148.21,0.8536732]
[1719540952702,26.7467,148.22,148.21,0.8536732]
[1719540955846,20.0,148.22,148.21,0.8536732]
[1719540959223,26.7467,148.22,148.21,0.8536732]
[1719540960348,20.0,148.22,148.21,0.8536732]
[1719540960742,26.7467,148.22,148.21,0.8536732]
[1719540961559,33.1081,148.22,148.21,0.8536732]
[1719540961854,33.1081,148.22,148.12,6.7508]
[1719540961855,6.7487,148.18,148.12,6.7508]
[1719540962051,20.0,148.17,148.11,16.8783]
[1719540962245,6.7503,148.15,148.09,6.7525]
[1719540962555,26.7504,148.14,148.08,6.753]
[1719540962864,21.1522,148.13,148.04,0.04002585]
[1719540963049,16.8797,148.11,148.04,0.04002585]
[1719540963349,20.0,148.1,148.04,0.04002585]
[1719540963567,26.7526,148.1,148.04,0.04002585]
[1719540963854,6.7527,148.09,148.04,0.04002585]
[1719540964049,20.0,148.1,148.04,0.04002585]
[1719540964050,20.0,148.08,148.04,0.04002585]
[1719540964352,6.7535,148.07,148.04,0.04002585]
[1719540964537,20.0,148.07,148.04,0.04002585]
[1719540965835,26.7535,148.07,148.04,0.04002585]
[1719540967848,6.7544,148.05,148.04,0.04002585]
[1719540968157,120.0,148.05,147.93,13.063]
[1719540968340,6.7567,148.0,147.93,6.3032]
[1719540968533,20.0,147.99,147.93,6.3032]
[1719540969132,26.7572,147.99,147.93,13.0631]
[1719540969353,26.7572,147.99,147.93,6.7599]
[1719540969738,26.7572,147.99,147.92,6.7603]
[1719540969934,26.7572,147.99,147.93,6.7597]
[1719540970546,20.0,147.99,147.94,6.7593]
[1719540970756,20.0,147.99,147.93,16.899]
[1719540970942,6.7567,148.0,147.94,6.7594]
[1719540971254,20.0,147.99,147.93,16.899]
[1719540971555,20.0,148.02,147.91,0.8536732]
[1719540971775,16.8963,147.97,147.91,0.8536732]
[1719540971944,20.0,147.96,147.91,0.8536732]
[1719540972871,6.7608,147.91,147.85,6.7636]
[1719540973158,6.7608,147.92,147.86,6.7631]
[1719540973361,20.0,147.91,147.81,23.4726]
[1719540973536,6.7625,147.88,147.81,23.4726]
[1719540973734,20.0,147.87,147.81,23.4726]
[1719540973961,36.9028,147.91,147.81,23.4726]
[1719540974255,6.7618,147.89,147.83,6.7645]
[1719540974557,26.7622,147.88,147.82,6.7649]
[1719540974758,6.7622,147.88,147.82,6.7649]
[1719540974952,20.0,147.87,147.82,6.7649]
[1719540975533,20.0,147.87,147.81,16.9133]
[1719540975863,20.0,147.87,147.76,7.4669732]
[1719540975864,6.7577,147.98,147.92,6.7603]
[1719540976082,100.0,148.03,147.9,16.9025]
[1719540976083,16.8903,148.02,147.9,16.9025]
[1719540976665,6.145,148.04,147.92,6.7603]
[1719540976666,16.8891,148.03,147.92,6.7603]
[1719540976973,370.5451,148.05,147.95,16.8965]
[1719540976974,254.6,148.05,147.95,16.8965]
[1719540977140,6.755,148.04,147.95,16.8965]
[1719540977340,6.755,148.04,147.87,23.0371]
[1719540977341,6.7545,148.05,147.97,16.8944]
[1719540977763,6.0292,148.1,147.87,48.0371]
[1719540978075,6.0292,148.1,147.89,25.0]
[1719540978252,6.7531,148.08,148.01,23.6456]
[1719540978438,20.0,148.07,148.01,16.8897]
[1719540978644,20.0,148.07,148.02,6.7558]
[1719540978860,6.7531,148.08,148.01,23.6459]
[1719540979164,6.755,148.04,147.98,23.6513]
[1719540979563,100.0,148.08,147.94,6.7594]
[1719540979876,22.83285037,148.11,147.88,20.0]
[1719540980043,6.7544,148.06,147.99,6.7567]
[1719540980443,20.0,148.05,148.0,6.7567]
[1719540980663,20.0,148.05,147.98,23.6513]
[1719540980850,20.0,148.05,147.99,6.757]
[1719540981262,26.7547,148.05,147.99,6.757]
[1719540981451,26.7547,148.05,147.98,23.6517]
[1719540981650,20.0,148.05,147.99,6.7571]
[1719540981853,20.0,148.05,148.0,6.7565]
[1719540982056,20.0,148.06,148.0,6.7565]
[1719540982267,20.0,148.09,148.0,6.7565]
[1719540982761,6.7536,148.07,148.0,6.7565]
[1719540982969,20.0,148.06,148.01,6.756]
[1719540983380,20.0,148.07,148.02,16.8885]
[1719540983665,20.0,148.12,148.02,16.8885]
[1719540984566,6.7542,148.06,148.0,6.7566]
[1719540984969,6.7542,148.06,147.99,16.8926]
[1719540984970,6.7534,148.08,148.01,6.7561]
[1719540985164,20.0,148.07,148.01,6.7561]
[1719540986268,20.0,148.07,148.02,23.6449]
[1719540986577,20.0,148.08,148.03,6.7553]
[1719540986752,20.0,148.08,148.04,6.7548]
[1719540986955,20.0,148.09,148.04,6.7548]
[1719540987161,20.0,148.13,148.04,6.7548]
[1719540987364,6.7522,148.1,148.05,6.7544]
[1719540987573,20.0,148.09,148.02,16.8895]
[1719540987872,20.0,148.13,148.02,16.8895]
[1719540988450,6.7534,148.08,148.02,23.6452]
[1719540988750,120.0,148.13,147.88,20.0]
[1719540988751,6.7545,148.05,147.99,16.8924]
[1719540989080,20.0,148.04,148.0,6.7563]
[1719540989454,20.0,148.05,148.0,6.7563]
[1719540990357,20.0,148.06,148.0,6.7563]
[1719540990577,20.0,148.06,148.01,16.8898]
[1719540990773,20.0,148.08,148.03,6.755]
[1719540990978,20.0,148.12,148.04,6.7548]
[1719540991158,6.752,148.11,148.04,6.7548]
[1719540991353,20.0,148.1,148.06,16.8847]
[1719540991973,16.0664,148.17,148.06,16.8847]
[1719540991974,20.0,148.16,148.06,16.8847]
[1719540992171,20.0,148.16,148.08,16.8821]
[1719540993085,16.0664,148.17,148.08,16.8821]
[1719540993292,6.7513,148.12,148.05,16.8857]
[1719540993785,6.7509,148.13,148.07,6.7534]
[1719540994148,6.7509,148.13,148.06,6.7539]
[1719540994354,26.7514,148.12,148.05,16.8857]
[1719540994560,20.0,148.12,148.06,6.7536]
[1719540994979,20.0,148.12,148.07,16.8832]
[1719540995180,20.0,148.16,148.07,16.8832]
[1719540996977,6.7513,148.12,148.07,16.8832]
[1719540997185,20.0,148.11,148.06,6.7538]
[1719540997387,26.7518,148.11,148.04,16.8866]
[1719540997665,26.7518,148.11,148.05,6.7542]
[1719540997863,20.0,148.11,148.05,6.7542]
[1719540998068,20.0,148.11,148.06,6.7539]
[1719540998275,20.0,148.13,148.06,16.8843]
[1719540998478,20.0,148.14,148.07,6.7531]
[1719540999189,20.0,148.14,148.08,6.7528]
[1719540999387,20.0,148.14,148.06,16.8843]
[1719540999580,20.0,148.16,147.98,6.1242]
[1719540999777,6.7504,148.14,148.06,23.6387]
[1719540999975,26.7509,148.13,148.06,23.6387]
[1719541000181,6.7513,148.12,148.06,16.8849]
[1719541000371,20.0,148.11,148.06,16.8849]
[1719541000573,20.0,148.11,148.05,6.7543]
[1719541000774,20.0,148.11,148.06,23.6384]
[1719541000995,20.0,148.13,148.06,23.6384]
[1719541001188,26.7508,148.13,148.06,23.6384]
[1719541001392,26.7508,148.13,148.07,6.7534]
[1719541001393,20.0,148.13,148.07,6.7534]
[1719541001588,20.0,148.13,148.06,23.6384]
[1719541001786,6.7504,148.14,148.07,6.7535]
[1719541001975,20.0,148.13,148.06,23.6384]
[1719541002176,20.0,148.13,148.07,6.7535]
[1719541004397,20.0,148.13,148.06,23.6384]
[1719541004900,20.0,148.13,148.03,6.755]
[1719541005083,16.8785,148.12,147.98,6.1242]
[1719541005283,6.7527,148.09,148.01,6.7558]
[1719541005587,20.0,148.11,148.03,16.8876]
[1719541005788,20.0,148.11,148.04,6.7546]
[1719541005995,26.7517,148.11,148.04,6.7546]
[1719541006302,20.0,148.11,148.05,6.7544]
[1719541007074,20.0,148.11,148.04,6.7548]
[1719541007490,20.0,148.11,148.03,16.8876]
[1719541007702,20.0,148.13,148.03,16.8876]
[1719541007881,6.7522,148.1,148.03,23.6427]
[1719541008082,20.0,148.09,148.03,23.6427]
[1719541009880,20.0,148.09,148.03,16.8876]
[1719541010081,20.0,148.11,148.04,6.7548]
[1719541010682,26.7517,148.11,148.04,6.7548]
[1719541010882,26.7517,148.11,148.03,23.6428]
[1719541011304,6.7527,148.09,148.03,16.8876]
[1719541011604,26.7518,148.11,148.04,6.7546]
[1719541011810,20.0,148.11,148.05,6.7542]
[1719541013111,20.0,148.11,148.06,6.7539]
[1719541013302,6.7509,148.13,148.06,6.7539]
[1719541013303,20.0,148.12,148.06,6.7539]
[1719541013688,20.0,148.13,148.07,6.7535]
[1719541014087,26.7508,148.13,148.06,6.7539]
[1719541014309,6.2055,148.2,148.11,6.7512]
[1719541014507,20.0,148.19,148.1,16.8795]
[1719541014894,6.749,148.17,148.1,23.6315]
[1719541015097,20.0,148.16,148.1,23.6315]
[1719541016908,20.0,148.17,148.1,23.6315]
[1719541017123,20.0,148.17,148.11,6.7516]
[1719541018197,26.749,148.17,148.1,16.8795]
[1719541018707,6.7499,148.15,148.07,29.983]
[1719541018907,20.0,148.17,148.07,6.3465]
[1719541019217,6.7488,148.18,148.1,6.7518]
[1719541019523,20.0,148.17,148.09,16.8811]
[1719541019703,26.7491,148.17,148.09,23.6333]
[1719541019899,20.0,148.17,148.09,16.8811]
[1719541020110,6.7491,148.17,148.09,16.8811]
[1719541020408,20.0,148.16,148.09,16.8811]
[1719541020619,20.0,148.16,148.09,23.6336]
[1719541020813,20.0,148.16,148.1,6.7521]
[1719541021196,20.0,148.16,148.09,23.6336]
[1719541021605,20.0,148.16,148.1,6.7521]
[1719541022324,20.0,148.16,148.11,6.7516]
[1719541022620,6.7488,148.18,148.11,6.7516]
[1719541022814,20.0,148.17,148.11,6.7516]
[1719541024217,20.0,148.17,148.09,16.8811]
[1719541024420,36.8707,148.19,148.06,33.2114]
[1719541024602,6.7507,148.14,148.07,6.7534]
[1719541024809,20.0,148.13,148.06,33.2114]
[1719541025117,20.0,148.13,148.08,6.7529]
[1719541025311,6.2055,148.2,148.08,16.8822]
[1719541025312,20.0,148.15,148.08,16.8822]
[1719541025616,6.7487,148.18,148.1,6.7518]
[1719541025820,20.0,148.17,148.1,6.7518]
[1719541026025,26.7491,148.17,148.1,6.7518]
[1719541027629,26.7491,148.17,148.09,6.7524]
[1719541028553,26.7491,148.17,148.1,6.7521]
[1719541030263,20.0,148.17,148.09,6.7525]
[1719541030439,6.7491,148.17,148.1,6.7521]
[1719541030745,20.0,148.16,148.1,6.7521]
[1719541033349,20.0,148.16,148.11,6.7516]
[1719541033554,20.0,148.17,148.11,6.7516]
[1719541033736,20.0,148.17,148.1,23.6318]
[1719541033936,26.7491,148.17,148.1,23.6318]
[1719541034143,20.0,148.17,148.1,23.6318]
[1719541034759,26.749,148.17,148.1,23.6318]
[1719541035350,20.0,148.17,148.06,16.3271]
[1719541035668,16.8745,148.16,148.06,23.0807]
[1719541035859,20.0,148.15,148.07,6.7535]
[1719541036370,6.7504,148.14,148.07,6.7535]
[1719541036545,26.75,148.15,148.07,6.7535]
[1719541036732,26.75,148.15,148.08,6.753]
[1719541038570,26.75,148.15,148.09,6.7526]
[1719541038571,20.0,148.15,148.09,6.7526]
[1719541038969,20.0,148.15,148.1,6.7518]
[1719541039268,20.0,148.16,148.1,6.7518]
[1719541039439,20.0,148.17,148.11,6.7517]
[1719541040070,20.0,148.17,148.1,6.752]
[1719541040266,26.7491,148.17,148.1,6.752]
[1719541040767,20.0,148.17,148.06,33.2114]
[1719541040976,6.7495,148.16,148.06,16.3271]
[1719541041150,20.0,148.19,148.08,16.8823]
[1719541042353,6.7485,148.18,148.11,6.7515]
[1719541043039,6.2055,148.2,148.12,6.751]
[1719541043239,6.0499,148.24,148.13,16.41244796]
[1719541043474,20.0,148.23,148.13,16.41244796]
[1719541044069,26.7462,148.23,148.15,6.7495]
[1719541044443,26.7462,148.23,148.14,16.8751]
[1719541044444,20.0,148.23,148.14,16.8751]
[1719541044646,20.0,148.23,148.13,15.0625]
[1719541044865,6.7477,148.2,148.13,15.0625]
[1719541045184,6.7476,148.2,148.13,21.8131]
[1719541045381,6.7472,148.21,148.13,21.8131]
[1719541046177,6.7467,148.22,148.14,0.35864981]
[1719541046477,6.7467,148.22,148.14,1.34974386]
[1719541046649,26.7463,148.23,148.15,6.7498]
[1719541046844,26.7463,148.23,148.16,1.34973144]
[1719541047975,16.3245,148.26,148.16,0.75380149]
[1719541048143,26.7458,148.25,148.17,6.7489]
[1719541048342,26.7458,148.25,148.18,6.7484]
[1719541048548,6.7458,148.25,148.18,1.34952184]
[1719541049072,7.4346732,148.28,148.18,8.09802184]
[1719541049073,6.7449,148.26,148.18,8.09802184]
[1719541049973,6.7449,148.26,148.17,16.8714]
[1719541049974,6.7445,148.27,148.19,6.7479]
[1719541050138,7.4346732,148.28,148.19,6.7479]
[1719541050343,26.7445,148.27,148.2,6.7475]
[1719541050543,26.7445,148.27,148.19,16.8695]
[1719541050544,20.0,148.27,148.21,6.7471]
[1719541050977,20.0,148.27,148.2,6.7475]
[1719541051149,6.7452,148.26,148.19,29.7199]
[1719541051787,26.7445,148.27,148.19,29.7199]
[1719541051951,26.7445,148.27,148.2,6.7475]
[1719541052146,26.7445,148.27,148.19,22.972]
[1719541052356,26.7445,148.27,148.19,29.7199]
[1719541053181,6.745,148.26,148.19,29.7199]
[1719541053353,26.7445,148.27,148.2,6.7474]
[1719541053673,20.0,148.27,148.2,6.7474]
[1719541053879,20.0,148.27,148.21,6.7471]
[1719541054481,20.0,148.27,148.2,6.7475]
[1719541054781,20.0,148.27,148.19,22.972]
[1719541054951,0.8536732,148.28,148.19,22.972]
[1719541055153,0.8536732,148.28,148.2,6.7475]
[1719541055567,7.5976732,148.28,148.2,6.7475]
[1719541055878,20.0,148.27,148.2,6.7475]
[1719541056583,20.0,148.27,148.15,28.46322767]
[1719541056751,20.8536732,148.28,148.15,6.135]
[1719541056958,6.7453,148.26,148.18,6.7481]
[1719541057166,20.8536732,148.28,148.18,6.7481]
[1719541057167,20.0,148.25,148.18,6.7481]
[1719541057363,20.8536732,148.28,148.18,6.7481]
[1719541057652,20.8536732,148.28,148.17,16.8715]
[1719541057856,6.7454,148.25,148.17,23.62]
[1719541058167,6.7459,148.24,148.17,23.62]
[1719541058353,6.7454,148.25,148.17,23.62]
[1719541058549,6.7454,148.25,148.18,6.7483]
[1719541058750,16.8618,148.27,148.15,6.135]
[1719541058984,6.7468,148.22,148.15,12.8849]
[1719541059283,20.0,148.26,148.16,6.7492]
[1719541059467,6.7459,148.24,148.17,6.7489]
[1719541059865,6.7454,148.25,148.18,6.7485]
[1719541060181,20.0,148.24,148.18,6.7485]
[1719541061972,20.0,148.24,148.18,16.8703]
[1719541062293,20.8536732,148.28,148.18,16.8703]
[1719541062889,6.7448,148.27,148.19,6.7479]
[1719541063093,20.0,148.26,148.19,6.7479]
[1719541063387,20.0,148.26,148.2,6.7476]
[1719541063559,26.745,148.26,148.19,6.7479]
[1719541064270,20.0,148.26,148.2,6.7475]
[1719541064474,20.0,148.27,148.2,6.7475]
[1719541064776,20.8536732,148.28,148.2,6.7475]
[1719541064985,0.8536732,148.28,148.2,6.7475]
[1719541065801,6.7445,148.27,148.2,6.7475]
[1719541066096,20.0,148.26,148.2,6.7475]
[1719541066798,6.7445,148.27,148.2,6.7475]
[1719541068092,7.5977732,148.28,148.21,6.7471]
[1719541068297,6.7444,148.27,148.2,6.7475]
[1719541069698,7.5979732,148.28,148.21,6.747]
[1719541070200,6.7447,148.27,148.2,6.7475]
[1719541072592,13.14,148.26,148.2,19.8875]
[1719541073095,0.8536732,148.28,148.2,19.8875]
[1719541073096,7.5976732,148.28,148.21,6.7471]
[1719541073271,7.5976732,148.28,148.22,6.7464]
[1719541073272,13.14,148.26,148.22,6.7464]
[1719541073472,13.14,148.26,148.21,23.615]
[1719541073707,13.14,148.27,148.21,36.755]
[1719541074010,7.5976732,148.28,148.21,36.755]
[1719541074179,13.14,148.27,148.21,36.755]
[1719541074600,13.14,148.27,148.21,23.615]
[1719541074794,19.8844,148.27,148.21,16.8679]
[1719541076101,13.14,148.27,148.21,23.615]
[1719541077296,19.8844,148.27,148.2,19.8874]
[1719541077594,13.14,148.26,148.19,19.888]
[1719541078378,19.8853,148.26,148.19,19.888]
[1719541078574,19.8844,148.27,148.2,6.7473]
[1719541078803,13.14,148.26,148.2,6.7473]
[1719541079478,19.8849,148.26,148.19,19.8879]
[1719541079678,0.8536732,148.28,148.15,23.0093]
[1719541079983,19.8866,148.23,148.17,13.14]
[1719541080172,13.14,148.25,148.19,6.7476]
[1719541080371,6.745,148.26,148.2,6.7475]
[1719541080372,13.14,148.26,148.2,6.7475]
[1719541080895,0.8536732,148.28,148.2,28.9893]
[1719541081197,0.8536732,148.28,148.24,13.14]
[1719541081407,0.8536732,148.28,148.25,6.7452]
[1719541081913,0.8536732,148.28,148.25,19.8852]
[1719541082405,0.8536732,148.28,148.23,23.205]
[1719541082786,0.8536732,148.28,148.23,29.9512]
[1719541083296,0.8536732,148.28,148.23,23.205]
[1719541083491,0.8536732,148.28,148.24,0.69442831]
[1719541084004,0.8536732,148.28,148.26,15.7898]
[1719541084205,15.232,148.4,148.32,6.7421]
[1719541084206,20.0,148.39,148.32,6.7421]
[1719541084504,21.9706,148.4,148.32,6.7421]
[1719541084671,13.2458,148.41,148.31,16.8564]
[1719541084868,6.7381,148.41,148.31,23.2335]
[1719541085073,0.8536732,148.43,148.34,16.853]
[1719541085295,0.8536732,148.43,148.31,6.3771]
[1719541085296,0.8536732,148.43,148.38,6.7394]
[1719541085489,0.8536732,148.43,148.31,6.3771]
[1719541085687,0.8536732,148.43,148.32,20.0]
[1719541086513,0.8536732,148.43,148.31,6.3771]
[1719541086686,6.7381,148.41,148.33,6.7413]
[1719541087194,0.8536732,148.43,148.27,6.4751]
[1719541087377,17.6976732,148.43,148.31,16.8565]
[1719541087575,20.0,148.42,148.31,16.8565]
[1719541087894,6.7384,148.41,148.31,16.8565]
[1719541088087,20.0,148.42,148.33,16.8532]
[1719541088300,0.8536732,148.43,148.33,16.8532]
[1719541088301,20.8536732,148.43,148.36,6.7401]
[1719541088608,20.8536732,148.43,148.29,26.27]
[1719541088812,7.5907732,148.43,148.36,16.8506]
[1719541089190,6.7377,148.42,148.33,16.8539]
[1719541089590,0.8536732,148.43,148.3,36.8576]
[1719541089801,6.7385,148.4,148.32,6.7421]
[1719541089982,6.7378,148.42,148.27,11.95721164]
[1719541090319,20.8536732,148.43,148.36,6.7401]
[1719541090494,27.5908732,148.43,148.36,6.7401]
[1719541090811,6.7377,148.42,148.35,16.8512]
[1719541091184,20.8536732,148.43,148.35,16.8512]
[1719541091499,20.8536732,148.43,148.35,23.5919]
[1719541092007,20.8536732,148.43,148.36,6.7402]
[1719541092216,0.8536732,148.43,148.37,8.08499686]
[1719541092385,0.8536732,148.43,148.37,1.34529686]
[1719541092902,0.8536732,148.43,148.39,6.7389]
[1719541093110,0.8536732,148.43,148.4,1.34502529]
[1719541093292,0.8536732,148.43,148.39,6.7389]
[1719541093480,0.8536732,148.43,148.37,23.5884]
[1719541093680,0.8536732,148.43,148.37,16.8489]
[1719541093905,0.8536732,148.43,148.34,16.853]
[1719541094210,0.8536732,148.43,148.35,6.7406]
[1719541094211,6.7377,148.42,148.35,6.7406]
[1719541094382,0.8536732,148.43,148.35,6.7406]
[1719541094585,0.8536732,148.43,148.36,6.74]
[1719541094983,0.8536732,148.43,148.37,16.8497]
[1719541095211,0.8536732,148.43,148.39,6.7388]
[1719541095595,0.8536732,148.43,148.38,6.7394]
[1719541096011,0.8536732,148.43,148.42,6.7376]
[1719541096222,0.8536732,148.43,148.32,15.7343]
[1719541096510,0.8536732,148.43,148.38,6.739]
[1719541096708,0.8536732,148.43,148.37,23.5893]
[1719541096923,0.8536732,148.43,148.37,16.8495]
[1719541097122,0.8536732,148.43,148.37,23.589]
[1719541097995,0.8536732,148.43,148.38,6.7394]
[1719541098215,0.8536732,148.43,148.37,16.8495]
[1719541099193,6.7377,148.42,148.34,6.7411]
[1719541099696,6.7377,148.42,148.35,6.7407]
[1719541099896,6.7377,148.42,148.34,6.7411]
[1719541100112,6.7382,148.41,148.34,6.7411]
[1719541100315,6.7382,148.41,148.33,23.5949]
[1719541100892,6.7377,148.42,148.34,6.7411]
[1719541101197,6.7382,148.41,148.34,6.7411]
[1719541101392,7.0050732,148.43,148.33,16.8533]
[1719541101393,16.1184,148.42,148.33,16.8533]
[1719541101598,6.7386,148.4,148.33,23.5949]
[1719541101938,6.7386,148.4,148.33,16.8533]
[1719541102523,6.7381,148.41,148.33,23.5948]
[1719541103229,16.1184,148.42,148.33,16.8533]
[1719541103634,16.1184,148.42,148.35,6.7404]
[1719541104025,16.1184,148.42,148.36,6.7402]
[1719541104224,16.1184,148.42,148.35,6.7407]
[1719541104744,7.0050732,148.43,148.37,6.7398]
[1719541105543,13.7423732,148.43,148.36,6.7403]
[1719541106247,7.0050732,148.43,148.37,6.7397]
[1719541107047,7.0050732,148.43,148.36,23.591]
[1719541107343,7.0050732,148.43,148.37,6.7398]
[1719541107920,0.8536732,148.43,148.38,6.7394]
[1719541108126,0.8536732,148.43,148.39,6.7389]
[1719541108443,0.8536732,148.43,148.38,6.7393]
[1719541110729,0.8536732,148.43,148.36,16.8508]
[1719541110942,0.8536732,148.43,148.37,6.7398]
[1719541111439,7.5908732,148.43,148.36,23.591]
[1719541112020,0.8536732,148.43,148.37,6.7398]
[1719541113033,0.8536732,148.43,148.38,6.7394]
[1719541113352,0.8536732,148.43,148.39,6.7389]
[1719541113949,0.8536732,148.43,148.4,16.8457]
[1719541114742,0.8536732,148.43,148.36,6.7402]
[1719541114933,7.5912732,148.43,148.36,6.7403]
[1719541115134,0.8536732,148.43,148.36,16.8503]